fUSD/lending_fUSD_20240324
["ID","MTS","AMOUNT","RATE_DAILY","PERIOD"]
[320311489,1711283450373,-113.77828142,0.00019673,2]
[320311490,1711283450384,-386.22171858,0.00019673,2]
[320311491,1711283450394,-500.0,0.00019673,2]
[320311492,1711283450403,-165.32528142,0.00019673,2]
[320311493,1711283450426,-500.0,0.00019664,2]
[320311494,1711283450436,-334.67471858,0.00019673,2]
[320311495,1711283450445,-400.40746211,0.00019673,2]
[320311496,1711283450456,-99.59253789,0.00019673,2]
[320311497,1711283450465,-500.0,0.00019673,2]
[320311498,1711283450475,-500.0,0.00019673,2]
[320311499,1711283450484,-2012.91,0.00019673,2]
[320311500,1711283450493,-500.0,0.00019673,2]
[320311501,1711283450502,-500.0,0.00019673,2]
[320311502,1711283450512,-500.0,0.00019673,2]
[320311503,1711283450521,-500.0,0.00019673,2]
[320311504,1711283450531,-808.01,0.00019673,2]
[320311505,1711283450540,-500.0,0.00019673,2]
[320311506,1711283450550,-500.0,0.00019673,2]
[320311507,1711283450560,-616.31,0.00019673,2]
[320311508,1711283450570,-500.0,0.00019673,2]
[320311509,1711283450579,-500.0,0.00019673,2]
[320311510,1711283450588,-500.0,0.00019673,2]
[320311511,1711283450597,-500.0,0.00019673,2]
[320311512,1711283450607,-500.0,0.00019673,2]
[320311513,1711283450616,-500.0,0.00019673,2]
[320311514,1711283450625,-1420.03,0.00019673,2]
[320311515,1711283450634,-639.25,0.00019673,2]
[320311516,1711283450644,-533.55,0.00019673,2]
[320311517,1711283450653,-546.99,0.00019673,2]
[320311518,1711283450663,-500.0,0.00019673,2]
[320311519,1711283450672,-500.0,0.00019673,2]
[320311520,1711283450683,-500.0,0.00019673,2]
[320311521,1711283450692,-500.0,0.00019673,2]
[320311522,1711283450702,-507.55,0.00019673,2]
[320311523,1711283450711,-500.0,0.00019673,2]
[320311524,1711283450721,-608.97,0.00019673,2]
[320311525,1711283450731,-500.0,0.00019673,2]
[320311526,1711283450740,-220.32,0.00019673,2]
[320311527,1711283450749,-500.0,0.00019673,2]
[320311528,1711283450759,-2808.9,0.00019673,2]
[320311529,1711283450768,-500.0,0.00019673,2]
[320311530,1711283450777,-500.0,0.00019673,2]
[320311531,1711283450787,-582.97,0.00019673,2]
[320311532,1711283450796,-500.0,0.00019673,2]
[320311533,1711283450805,-661.93,0.00019673,2]
[320311534,1711283450818,-500.0,0.00019673,2]
[320311535,1711283450827,-724.63,0.00019673,2]
[320311536,1711283450837,-548.91,0.00019673,2]
[320311537,1711283450846,-500.0,0.00019673,2]
[320311538,1711283450855,-500.0,0.00019673,2]
[320311539,1711283450865,-468.39,0.00019673,2]
[320311540,1711283450874,-205.76,0.00019673,2]
[320311541,1711283450883,-2169.12,0.00019673,2]
[320311542,1711283450892,-500.0,0.00019673,2]
[320311543,1711283450901,-500.0,0.00019673,2]
[320311544,1711283450910,-1556.74143444,0.00019673,2]
[320311545,1711283450944,-220.35856556,0.00019673,2]
[320311546,1711283450954,-1364.53,0.00019673,2]
[320311547,1711283450963,-500.0,0.00019673,2]
[320311548,1711283450972,-500.0,0.00019673,2]
[320311549,1711283450982,-383.53787369,0.00019673,2]
[320311550,1711283450994,-116.46212631,0.00019673,2]
[320311551,1711283451004,-854.03,0.00019673,2]
[320311552,1711283451013,-470.4364462,0.00019673,2]
[320311553,1711283451022,-293.67142779,0.00019673,2]
[320311554,1711283451034,-206.32857221,0.00019673,2]
[320311555,1711283451043,-375.36142741,0.00019673,2]
[320311556,1711283451060,-149.62857259,0.00019673,2]
[320311557,1711283451070,-500.0,0.00019673,2]
[320311558,1711283451079,-500.0,0.00019673,2]
[320311559,1711283451088,-479.2185187,0.00019673,2]
[320311560,1711283451101,-418.61562317,0.00019673,2]
[320311561,1711283451112,-227.14585813,0.00019673,2]
[320311562,1711283451121,-274.75364614,0.00019673,2]
[320311563,1711283451145,-500.0,0.00019399,2]
[320311564,1711283451154,-225.24635386,0.00019673,2]
[320311565,1711283451164,-500.0,0.00019673,2]
[320311566,1711283451173,-1105.37,0.00019673,2]
[320311567,1711283451183,-500.0,0.00019673,2]
[320311568,1711283451193,-436.42298614,0.00019673,2]
[320311569,1711283451205,-63.57701386,0.00019673,2]
[320311570,1711283451214,-435.9362712,0.00019673,2]
[320311571,1711283451225,-64.0637288,0.00019673,2]
[320311572,1711283451235,-701.78,0.00019673,2]
[320311573,1711283451244,-500.0,0.00019673,2]
[320311574,1711283451254,-2735.53,0.00019673,2]
[320311575,1711283451264,-500.0,0.00019673,2]
[320311576,1711283451273,-500.0,0.00019673,2]
[320311577,1711283451284,-500.0,0.00019673,2]
[320311578,1711283451294,-9698.06,0.00019673,2]
[320311579,1711283451303,-500.0,0.00019673,2]
[320311580,1711283451315,-1376.3,0.00019673,2]
[320311581,1711283451325,-909.44,0.00019673,2]
[320311582,1711283451334,-500.0,0.00019673,2]
[320311583,1711283451344,-1595.31,0.00019673,2]
[320311584,1711283451353,-500.0,0.00019673,2]
[320311585,1711283451363,-537.83,0.00019673,2]
[320311586,1711283451372,-500.0,0.00019673,2]
[320311587,1711283451382,-1266.02,0.00019673,2]
[320311588,1711283451392,-2154.96,0.00019673,2]
[320311589,1711283451402,-387.80849553,0.00019673,2]
[320311590,1711283451411,-500.0,0.00019673,2]
[320311591,1711283451421,-988.58,0.00019673,2]
[320311592,1711283451430,-500.0,0.00019673,2]
[320311593,1711283451440,-1520.13,0.00019673,2]
[320311594,1711283451450,-500.0,0.00019673,2]
[320311595,1711283451459,-500.0,0.00019673,2]
[320311596,1711283451468,-500.0,0.00019673,2]
[320311597,1711283451478,-500.0,0.00019673,2]
[320311598,1711283451488,-566.62,0.00019673,2]
[320311599,1711283451497,-500.0,0.00019673,2]
[320311600,1711283451507,-3603.36,0.00019673,2]
[320311601,1711283451517,-513.17,0.00019673,2]
[320311602,1711283451527,-2314.42,0.00019673,2]
[320311603,1711283451536,-683.41,0.00019673,2]
[320311604,1711283451546,-500.0,0.00019673,2]
[320311605,1711283451555,-500.0,0.00019673,2]
[320311606,1711283451567,-881.9,0.00019673,2]
[320311607,1711283451577,-500.0,0.00019673,2]
[320311608,1711283451588,-2139.51,0.00019673,2]
[320311609,1711283451598,-500.0,0.00019673,2]
[320311610,1711283451607,-517.29,0.00019673,2]
[320311611,1711283451617,-1078.44,0.00019673,2]
[320311612,1711283451627,-500.0,0.00019673,2]
[320311613,1711283451636,-1278.97,0.00019673,2]
[320311614,1711283451646,-500.0,0.00019673,2]
[320311615,1711283451656,-500.0,0.00019673,2]
[320311616,1711283451665,-500.0,0.00019673,2]
[320311617,1711283451675,-740.7,0.00019673,2]
[320311618,1711283451684,-500.0,0.00019673,2]
[320311619,1711283451693,-500.0,0.00019673,2]
[320311620,1711283451703,-515.90678523,0.00019673,2]
[320311621,1711283451712,-500.0,0.00019673,2]
[320311622,1711283451721,-1695.71,0.00019673,2]
[320311623,1711283451730,-891.94,0.00019673,2]
[320311624,1711283451739,-500.0,0.00019673,2]
[320311625,1711283451750,-500.0,0.00019673,2]
[320311626,1711283451761,-500.0,0.00019673,2]
[320311627,1711283451770,-500.0,0.00019673,2]
[320311628,1711283451780,-1128.89,0.00019673,2]
[320311629,1711283451789,-578.75,0.00019673,2]
[320311630,1711283451799,-1484.9,0.00019673,2]
[320311631,1711283451809,-394.80973255,0.00019673,2]
[320311632,1711283451818,-500.0,0.00019673,2]
[320311633,1711283451827,-500.0,0.00019673,2]
[320311634,1711283451837,-500.0,0.00019673,2]
[320311635,1711283451847,-4875.08,0.00019673,2]
[320311636,1711283451858,-500.0,0.00019673,2]
[320311637,1711283451867,-500.0,0.00019673,2]
[320311638,1711283451876,-500.0,0.00019673,2]
[320311639,1711283451887,-500.0,0.00019673,2]
[320311640,1711283451895,-1582.78,0.00019673,2]
[320311641,1711283451905,-570.3,0.00019673,2]
[320311642,1711283451914,-697.55,0.00019673,2]
[320311643,1711283451924,-500.0,0.00019673,2]
[320311644,1711283451933,-1761.7,0.00019673,2]
[320311645,1711283451942,-500.0,0.00019673,2]
[320311646,1711283451951,-279.86,0.00019673,2]
[320311647,1711283451960,-500.0,0.00019673,2]
[320311648,1711283451970,-2856.06,0.00019673,2]
[320311649,1711283451979,-596.04,0.00019673,2]
[320311650,1711283451988,-500.0,0.00019673,2]
[320311651,1711283451998,-500.0,0.00019673,2]
[320311652,1711283452007,-508.77568837,0.00019673,2]
[320311653,1711283452017,-500.0,0.00019673,2]
[320311654,1711283452027,-8395.63862556,0.00019673,2]
[320311655,1711283452049,-500.0,0.00019399,2]
[320311656,1711283452061,-166.41,0.00019673,2]
[320311657,1711283453336,-320.61054471,0.00019399,2]
[320311658,1711283453356,-179.38945529,0.00019399,2]
[320311659,1711283453366,-150.0,0.00019637,2]
[320311660,1711283453376,-150.0,0.00019638,2]
[320311661,1711283453385,-150.0,0.00019657,2]
[320311662,1711283453394,-150.0,0.00019664,2]
[320311663,1711283453404,-150.0,0.00019669,2]
[320311664,1711283453413,-150.0,0.0001967,2]
[320311665,1711283453422,-4693.20137444,0.00019673,2]
[320311666,1711283453432,-500.0,0.00019673,2]
[320311667,1711283453441,-501.98,0.00019673,2]
[320311668,1711283453450,-500.0,0.00019673,2]
[320311669,1711283453459,-150.0,0.00019679,2]
[320311670,1711283453468,-150.0,0.00019681,2]
[320311671,1711283453478,-1104.79741603,0.00019682,2]
[320311672,1711283453486,-150.0,0.00019684,2]
[320311673,1711283453495,-150.0,0.00019684,2]
[320311674,1711283453504,-150.0,0.00019691,2]
[320311675,1711283453513,-150.0,0.00019692,2]
[320311676,1711283453523,-150.0,0.00019695,2]
[320311677,1711283453532,-150.0,0.00019696,2]
[320311678,1711283453541,-150.0,0.00019697,2]
[320311679,1711283453551,-150.0,0.00019697,2]
[320311680,1711283453562,-214.5273441,0.00019698,2]
[320311681,1711283453571,-155.0,0.00019698,2]
[320311682,1711283453580,-618.34122645,0.00019698,2]
[320311683,1711283453589,-207.58092625,0.00019699,4]
[320311684,1711283453598,-150.0,0.00019699,4]
[320311685,1711283453607,-150.0,0.00019699,4]
[320311686,1711283453617,-343.34673668,0.00019699,2]
[320311687,1711283453625,-155.0,0.000197,2]
[320311688,1711283453635,-47050.68950029,0.000197,5]
[320311689,1711283453648,-6822.1,0.000197,5]
[320311690,1711283453659,-3946.5,0.000197,5]
[320311691,1711283453671,-7265.7,0.000197,5]
[320311692,1711283453721,-49270.50576868,0.000197,5]
[320311693,1711283453733,-18899.09273688,0.000197,5]
[320311700,1711283825834,377.15,0.00016192,2]
[320311701,1711283845264,-2000.0,0.00017834,2]
[320311702,1711283846000,-201.32860966,0.00017834,2]
[320311703,1711283846022,-159.0,0.00017835,2]
[320311704,1711283846043,-168.0,0.00017835,2]
[320311705,1711283846065,-162.0,0.00017835,2]
[320311706,1711283884404,171.82424766,0.00017835,2]
[320311708,1711284191579,-1673.25732119,0.00018053,2]
[320311709,1711284191601,-16016.74267881,0.00018053,2]
[320311710,1711284308404,150.0,0.00017729,2]
[320311711,1711284323086,358.29,0.00015997,2]
[320311890,1711284631371,-155.0,0.00017902,2]
[320311891,1711284631381,-313.06412598,0.00017902,2]
[320311892,1711284631394,-730.35536255,0.00017902,2]
[320311893,1711284631435,-72.08539226,0.00017902,2]
[320311894,1711284631444,-1572.29,0.00017903,2]
[320311895,1711284631453,-1442.77498105,0.00017913,2]
[320311896,1711284631466,-557.22501895,0.00017913,2]
[320311897,1711284631475,-250.0,0.00017921,2]
[320311898,1711284631484,-478.06200859,0.00017936,2]
[320311899,1711284631507,-550.0,0.00017936,2]
[320311900,1711284631617,-1272.22164415,0.00017936,2]
[320311901,1711284631677,-323.98634726,0.00017936,2]
[320311902,1711284631687,-573.65863992,0.00017962,2]
[320311903,1711284631699,-154.34136008,0.00017962,2]
[320311904,1711284631708,-244.46,0.00018061,2]
[320311905,1711284631718,-154.63,0.0001807,2]
[320311906,1711284631727,-35.94611889,0.00018082,2]
[320311907,1711284631947,-114.05388111,0.00018082,2]
[320311908,1711284631957,-175.82,0.00018094,2]
[320311909,1711284631966,-168.68,0.00018126,2]
[320311910,1711284631975,-272.0,0.0001814,2]
[320311911,1711284631984,-154.63,0.00018188,2]
[320311912,1711284631993,-358.29,0.00018261,2]
[320311913,1711284632002,-3977.0,0.000183,2]
[320311914,1711284632012,-727.0,0.000183,2]
[320311915,1711284632023,-154.63,0.00018306,2]
[320311916,1711284632033,-150.0,0.00018385,2]
[320311917,1711284632043,-154.63,0.00018423,2]
[320311918,1711284632052,-166.98,0.00018513,2]
[320311919,1711284632061,-154.63,0.00018541,2]
[320311920,1711284632070,-246.25,0.00018612,2]
[320311921,1711284632079,-154.63,0.00018659,2]
[320311923,1711284632089,-162.67,0.0001867,2]
[320311924,1711284632098,-499.99,0.0001867,2]
[320311926,1711284632107,-160.02,0.00018695,2]
[320311928,1711284632116,-159.0,0.00018747,2]
[320311930,1711284632125,-168.0,0.00018747,2]
[320311932,1711284632134,-162.0,0.00018747,2]
[320311934,1711284632144,-154.63,0.00018776,2]
[320311936,1711284632152,-160.02,0.00018819,2]
[320311938,1711284632162,-156.75847385,0.00018822,2]
[320311941,1711284632172,-160.07391968,0.00018826,2]
[320311942,1711284632181,-717.0,0.0001888,2]
[320311944,1711284632190,-775.0,0.0001888,2]
[320311946,1711284632199,-500.0,0.0001888,2]
[320311948,1711284632208,-154.63,0.00018894,2]
[320311950,1711284632217,-872.0020641,0.000189,3]
[320311952,1711284632226,-171.80075177,0.0001894,2]
[320311954,1711284632462,-160.02,0.00018944,2]
[320311955,1711284632477,-431.8602,0.00018978,2]
[320311956,1711284632487,-8767.02331823,0.00018999,2]
[320311957,1711284632496,-1500.0,0.00019,2]
[320311958,1711284632506,-1503.0,0.00019,2]
[320311959,1711284632515,-1250.0,0.00019,3]
[320311960,1711284632524,-1500.0,0.00019,2]
[320311961,1711284632534,-1251.0,0.00019001,2]
[320311962,1711284632543,-1225.0,0.00019001,2]
[320311963,1711284632552,-801.0,0.00019001,2]
[320311964,1711284632561,-414.0,0.00019001,2]
[320311965,1711284632570,-1137.0,0.00019001,2]
[320311966,1711284632579,-358.0,0.00019001,2]
[320311967,1711284632589,-1460.0,0.00019001,2]
[320311968,1711284632599,-2957.0,0.00019001,2]
[320311969,1711284632608,-150.355,0.00019001,2]
[320311970,1711284632617,-1625.0,0.00019001,2]
[320311971,1711284632627,-2420.0,0.00019001,2]
[320311972,1711284632636,-213.0,0.00019001,2]
[320311973,1711284632645,-4768.0,0.00019001,2]
[320311974,1711284632654,-8334.982,0.00019001,2]
[320311975,1711284632665,-3483.043,0.00019001,2]
[320311976,1711284632675,-154.63,0.00019012,2]
[320311977,1711284632684,-150.0,0.00019042,2]
[320311978,1711284632693,-252.46180094,0.00019054,2]
[320311979,1711284632703,-160.02,0.00019069,2]
[320311980,1711284632712,-1874.03869476,0.00019077,2]
[320311981,1711284632721,-1597.88212381,0.00019078,2]
[320311985,1711284637480,-7387.12407619,0.00019078,2]
[320311986,1711284637489,-44460.7486,0.00019078,2]
[320311987,1711284637499,-500.0,0.00019078,2]
[320311988,1711284637509,-3280.6289,0.00019078,2]
[320311989,1711284637518,-154.36957212,0.00019083,2]
[320311990,1711284637528,-1062.2,0.00019103,2]
[320311991,1711284637537,-441.52,0.00019103,2]
[320311992,1711284637547,-347.22,0.00019103,2]
[320311993,1711284637556,-347.22,0.00019103,2]
[320311994,1711284637565,-347.22,0.00019103,2]
[320311995,1711284637575,-347.22,0.00019103,2]
[320311996,1711284637585,-347.22,0.00019103,2]
[320311997,1711284637594,-347.22,0.00019103,2]
[320311998,1711284637603,-347.22,0.00019103,2]
[320311999,1711284637612,-347.22,0.00019103,2]
[320312000,1711284637621,-261.34080063,0.00019109,2]
[320312001,1711284637631,-200.77837603,0.00019178,2]
[320312002,1711284637640,-3248.26037785,0.000192,2]
[320312003,1711284637653,-596.43041822,0.000192,2]
[320312004,1711284637662,-154.88236009,0.0001922,2]
[320312005,1711284637673,-838.7870399,0.00019252,2]
[320312006,1711284637682,-261.34080063,0.00019265,2]
[320312007,1711284637691,-150.0,0.00019298,2]
[320312008,1711284637701,-11666.6846,0.00019299,2]
[320312009,1711284637710,-673.9927,0.00019299,2]
[320312010,1711284637719,-154.36957212,0.000193,2]
[320312011,1711284637728,-200.0,0.00019354,2]
[320312012,1711284637737,-800.0,0.0001937,2]
[320312013,1711284637747,-2203.68066851,0.00019397,2]
[320312014,1711284637756,-560.91431898,0.00019398,2]
[320312015,1711284637766,-500.0,0.00019398,2]
[320312016,1711284637775,-500.0,0.00019399,2]
[320312017,1711284637785,-500.0,0.00019399,2]
[320312018,1711284637794,-501.00916797,0.00019399,2]
[320312019,1711284637804,-492.21649353,0.00019399,2]
[320312020,1711284637812,-500.82189528,0.00019399,2]
[320312021,1711284637822,-501.46496695,0.00019399,2]
[320312022,1711284637831,-500.95259345,0.00019399,2]
[320312023,1711284637840,-502.12551253,0.00019399,2]
[320312024,1711284637849,-500.71150144,0.00019399,2]
[320312025,1711284637859,-500.75352909,0.00019399,2]
[320312027,1711284637868,-500.0,0.00019399,2]
[320312029,1711284637877,-632.03052899,0.00019399,2]
[320312031,1711284637887,-503.17259259,0.00019399,2]
[320312033,1711284637897,-435.50403386,0.00019399,2]
[320312035,1711284637927,-64.49596614,0.00019399,2]
[320312036,1711284637936,-284.14731013,0.00019399,2]
[320312037,1711284637964,-246.85094839,0.00019399,2]
[320312038,1711284637974,-500.0,0.00019399,2]
[320312039,1711284637983,-506.04879628,0.00019399,2]
[320312040,1711284637992,-500.0,0.00019399,2]
[320312041,1711284638001,-234.85587904,0.00019399,2]
[320312042,1711284638010,-283.50211646,0.00019399,2]
[320312043,1711284638031,-232.82883045,0.00019399,2]
[320312044,1711284638040,-500.0,0.00019399,2]
[320312045,1711284638049,-500.0,0.00019399,2]
[320312046,1711284638058,-500.0,0.00019399,2]
[320312047,1711284638067,-500.0,0.00019399,2]
[320312048,1711284638076,-500.0,0.00019399,2]
[320312049,1711284638085,-500.0,0.00019399,2]
[320312050,1711284638094,-500.0,0.00019399,2]
[320312051,1711284638103,-500.0,0.00019399,2]
[320312052,1711284638113,-500.0,0.00019399,2]
[320312053,1711284638123,-500.0,0.00019399,2]
[320312054,1711284638133,-500.0,0.00019399,2]
[320312055,1711284638143,-500.0,0.00019399,2]
[320312056,1711284638153,-500.0,0.00019399,2]
[320312057,1711284638162,-500.0,0.00019399,2]
[320312058,1711284638173,-500.0,0.00019399,2]
[320312059,1711284638182,-466.75584362,0.00019399,2]
[320312060,1711284638192,-500.0,0.00019399,2]
[320312061,1711284638201,-500.0,0.00019399,2]
[320312062,1711284638210,-500.0,0.00019399,2]
[320312063,1711284638221,-500.0,0.00019399,2]
[320312064,1711284638231,-500.0,0.00019399,2]
[320312065,1711284638240,-611.63,0.00019399,2]
[320312066,1711284638253,-500.0,0.00019399,2]
[320312067,1711284638263,-500.0,0.00019399,2]
[320312068,1711284638274,-150.49374319,0.00019399,2]
[320312069,1711284638283,-500.0,0.00019399,2]
[320312070,1711284638293,-500.0,0.00019399,2]
[320312071,1711284638302,-500.0,0.00019399,2]
[320312072,1711284638311,-500.0,0.00019399,2]
[320312073,1711284638320,-277.93664667,0.00019399,2]
[320312074,1711284638330,-500.0,0.00019399,2]
[320312075,1711284638340,-500.0,0.00019399,2]
[320312076,1711284638350,-500.0,0.00019399,2]
[320312077,1711284638361,-500.0,0.00019399,2]
[320312078,1711284638370,-500.0,0.00019399,2]
[320312079,1711284638379,-500.0,0.00019399,2]
[320312080,1711284638388,-1504.17,0.00019399,2]
[320312081,1711284638398,-593.10491358,0.00019399,2]
[320312082,1711284638408,-500.0,0.00019399,2]
[320312083,1711284638419,-500.0,0.00019399,2]
[320312084,1711284638428,-500.0,0.00019399,2]
[320312085,1711284638438,-500.0,0.00019399,2]
[320312086,1711284638448,-500.0,0.00019399,2]
[320312087,1711284638458,-500.0,0.00019399,2]
[320312088,1711284638467,-500.0,0.00019399,2]
[320312089,1711284638477,-238.79428642,0.00019399,2]
[320312090,1711284638486,-500.0,0.00019399,2]
[320312091,1711284638495,-500.0,0.00019399,2]
[320312092,1711284638504,-500.0,0.00019399,2]
[320312093,1711284638513,-603.08458828,0.00019399,2]
[320312094,1711284638522,-500.0,0.00019399,2]
[320312095,1711284638532,-500.0,0.00019399,2]
[320312096,1711284638543,-500.0,0.00019399,2]
[320312097,1711284638553,-500.0,0.00019399,2]
[320312098,1711284638563,-500.0,0.00019399,2]
[320312099,1711284638572,-500.0,0.00019399,2]
[320312100,1711284638581,-500.0,0.00019399,2]
[320312101,1711284638591,-7500.0,0.000194,2]
[320312102,1711284638601,-1000.0,0.000194,2]
[320312103,1711284638610,-212.87753227,0.00019436,2]
[320312104,1711284638620,-162.67,0.00019441,2]
[320312105,1711284638629,-500.0,0.00019451,2]
[320312106,1711284638639,-500.0,0.00019451,2]
[320312107,1711284638648,-500.0,0.00019451,2]
[320312108,1711284638658,-503.93115103,0.00019451,2]
[320312109,1711284638667,-500.0,0.00019451,2]
[320312110,1711284638677,-500.0,0.00019451,2]
[320312111,1711284638687,-500.0,0.00019451,2]
[320312112,1711284638696,-500.0,0.00019451,2]
[320312113,1711284638705,-500.0,0.00019451,2]
[320312114,1711284638714,-500.0,0.00019451,2]
[320312115,1711284638723,-500.0,0.00019451,2]
[320312116,1711284638733,-500.0,0.00019451,2]
[320312117,1711284638743,-500.0,0.00019451,2]
[320312118,1711284638752,-500.0,0.00019451,2]
[320312119,1711284638762,-500.0,0.00019451,2]
[320312120,1711284638771,-500.0,0.00019451,2]
[320312121,1711284638780,-500.0,0.00019451,2]
[320312122,1711284638789,-500.0,0.00019451,2]
[320312123,1711284638798,-425.66538993,0.00019451,2]
[320312124,1711284638808,-168.46139254,0.00019451,2]
[320312125,1711284638817,-500.0,0.00019451,2]
[320312126,1711284638826,-216.98952516,0.00019451,2]
[320312127,1711284638835,-264.28,0.00019451,2]
[320312128,1711284638844,-500.0,0.00019451,2]
[320312129,1711284638853,-500.0,0.00019451,2]
[320312130,1711284638862,-232.71486263,0.00019451,2]
[320312131,1711284638872,-500.0,0.00019451,2]
[320312132,1711284638882,-500.0,0.00019451,2]
[320312133,1711284638891,-500.0,0.00019451,2]
[320312134,1711284638901,-500.0,0.00019451,2]
[320312135,1711284638910,-500.0,0.00019451,2]
[320312136,1711284638920,-500.0,0.00019451,2]
[320312137,1711284638930,-500.0,0.00019451,2]
[320312138,1711284638939,-500.0,0.00019451,2]
[320312139,1711284638948,-371.24383578,0.00019451,2]
[320312140,1711284638957,-500.0,0.00019451,2]
[320312141,1711284638966,-243.34,0.00019451,2]
[320312142,1711284638976,-500.0,0.00019451,2]
[320312143,1711284638985,-500.0,0.00019451,2]
[320312144,1711284638994,-500.0,0.00019451,2]
[320312145,1711284639004,-500.0,0.00019451,2]
[320312146,1711284639014,-500.0,0.00019451,2]
[320312147,1711284639023,-500.0,0.00019451,2]
[320312148,1711284639032,-506.78355996,0.00019451,2]
[320312149,1711284639041,-500.0,0.00019451,2]
[320312150,1711284639051,-500.0,0.00019451,2]
[320312151,1711284639062,-500.0,0.00019451,2]
[320312152,1711284639071,-500.0,0.00019451,2]
[320312153,1711284639080,-500.0,0.00019451,2]
[320312154,1711284639089,-500.0,0.00019451,2]
[320312155,1711284639098,-586.38,0.00019451,2]
[320312156,1711284639109,-500.0,0.00019451,2]
[320312157,1711284639119,-508.93281291,0.00019451,2]
[320312158,1711284639128,-500.0,0.00019451,2]
[320312159,1711284639138,-500.0,0.00019451,2]
[320312160,1711284639147,-500.0,0.00019451,2]
[320312161,1711284639157,-500.0,0.00019451,2]
[320312162,1711284639166,-512.52601775,0.00019451,2]
[320312163,1711284639177,-500.0,0.00019451,2]
[320312164,1711284639187,-500.0,0.00019451,2]
[320312165,1711284639196,-500.0,0.00019451,2]
[320312166,1711284639206,-268.20402336,0.00019451,2]
[320312167,1711284639216,-500.0,0.00019451,2]
[320312168,1711284639225,-500.0,0.00019451,2]
[320312169,1711284639236,-1226.41298651,0.00019451,2]
[320312171,1711284639713,-1002.53701349,0.00019451,2]
[320312172,1711284639723,-500.0,0.00019451,2]
[320312173,1711284639733,-293.700341,0.00019452,2]
[320312174,1711284639742,-160.08,0.0001949,2]
[320312175,1711284639751,-233.28264551,0.00019499,2]
[320312176,1711284639763,-571.85547188,0.00019499,2]
[320312177,1711284639774,-175.26080278,0.000195,2]
[320312178,1711284639783,-1278.48500108,0.000195,2]
[320312179,1711284639792,-1500.0,0.000195,2]
[320312180,1711284639802,-552.95754772,0.000195,2]
[320312181,1711284639811,-1000.0,0.000195,2]
[320312182,1711284639821,-190.60474102,0.00019509,2]
[320312183,1711284639830,-200.0,0.00019523,2]
[320312184,1711284639840,-800.0,0.00019523,2]
[320312185,1711284639849,-200.0,0.00019523,2]
[320312186,1711284639858,-500.0,0.00019523,2]
[320312187,1711284639867,-200.0,0.00019523,2]
[320312188,1711284639877,-171.80075177,0.00019531,2]
[320312189,1711284639886,-81.4589011,0.00019536,2]
[320312196,1711284642148,-483.8934,0.00019536,2]
[320312202,1711284642206,-340.62,0.00019536,2]
[320312209,1711284642503,-372.5126999,0.00019536,2]
[320312210,1711284642512,-763.86401886,0.00019554,2]
[320312211,1711284642523,-1278.485001,0.00019573,2]
[320312212,1711284642532,-10055.63222475,0.00019598,2]
[320312213,1711284642541,-500.0,0.00019598,2]
[320312214,1711284642551,-1375.63,0.00019598,2]
[320312215,1711284642560,-606.77,0.00019598,2]